bitfinex/quotes_SOLUSD_20240605
["timestamp","ask_amount","ask_price","bid_price","bid_amount"]
[1717594548896,2.1331,173.45,173.42,2.9487002]
[1717594549083,2.1331,173.46,173.42,0.8152002]
[1717594549283,2.3029,173.47,173.43,2.1333]
[1717594550699,0.17,173.47,173.42,2.9486002]
[1717594550891,2.133,173.46,173.42,2.9486002]
[1717594551490,2.1331,173.45,173.42,0.8152002]
[1717594552384,2.1332,173.45,173.42,0.8152002]
[1717594552892,2.1333,173.44,173.42,0.8152002]
[1717594553090,2.1332,173.45,173.42,0.8152002]
[1717594553394,2.1332,173.45,173.42,2.9487002]
[1717594553801,2.1332,173.45,173.42,0.8152002]
[1717594554003,2.1333,173.44,173.42,0.8152002]
[1717594554185,2.1332,173.45,173.42,0.8152002]
[1717594554993,2.1332,173.45,173.42,2.9487002]
[1717594555705,2.1332,173.45,173.42,0.8152002]
[1717594556207,2.3029,173.47,173.43,2.1333]
[1717594556402,2.133,173.46,173.43,2.1333]
[1717594556900,6.3979,173.5,173.44,2.1332]
[1717594557102,2.1328,173.48,173.44,2.1332]
[1717594557401,2.1328,173.48,173.42,0.8152002]
[1717594557703,2.1329,173.47,173.43,2.1333]
[1717594558204,2.133,173.46,173.43,2.1333]
[1717594558401,4.2659,173.47,173.42,0.8152002]
[1717594558605,2.1332,173.45,173.42,0.8152002]
[1717594558802,2.1332,173.45,173.42,2.9487002]
[1717594559106,2.1331,173.45,173.42,0.8152002]
[1717594559402,2.1331,173.46,173.42,2.9487002]
[1717594559606,2.1331,173.45,173.42,2.9487002]
[1717594560101,2.1331,173.45,173.42,0.8152002]
[1717594561105,2.1331,173.46,173.42,2.9487002]
[1717594561294,2.1331,173.45,173.42,2.9487002]
[1717594561502,2.1333,173.44,173.42,0.8152002]
[1717594561893,4.2662,173.46,173.42,0.8152002]
[1717594562197,2.1333,173.44,173.42,0.8152002]
[1717594562993,2.3032,173.45,173.42,0.8152002]
[1717594563395,0.17,173.45,173.42,2.9487002]
[1717594563911,2.1331,173.46,173.42,2.9487002]
[1717594564488,2.1331,173.45,173.42,0.8152002]
[1717594565207,2.133,173.46,173.42,2.9486002]
[1717594566189,12.9673,173.48,173.42,2.9486002]
[1717594566190,2.1331,173.45,173.42,2.9486002]
[1717594566509,2.1331,173.45,173.42,0.8152002]
[1717594567088,2.1333,173.44,173.42,0.8152002]
[1717594567287,2.1332,173.45,173.42,0.8152002]
[1717594569804,2.1332,173.45,173.42,2.9487002]
[1717594570214,2.1332,173.45,173.42,0.8152002]
[1717594571021,2.1333,173.44,173.42,0.8152002]
[1717594572013,2.1334,173.43,173.42,0.8152002]
[1717594572220,2.3034,173.43,173.42,0.8152002]
[1717594573315,2.4734,173.43,173.42,0.8152002]
[1717594574315,0.34,173.43,173.42,0.8152002]
[1717594574806,2.3034,173.43,173.42,0.8152002]
[1717594576327,2.4734,173.43,173.42,0.8152002]
[1717594577424,2.3034,173.43,173.42,0.8152002]
[1717594577722,0.17,173.43,173.42,0.8152002]
[1717594578627,2.3034,173.43,173.42,0.8152002]
[1717594579719,2.1334,173.43,173.42,0.8152002]
[1717594580225,2.4734,173.43,173.42,0.8152002]
[1717594581120,2.1335,173.42,173.41,0.4]
[1717594581323,6.7405,173.42,173.41,0.4]
[1717594581517,2.4735,173.42,173.41,0.4]
[1717594581709,0.17,173.42,173.41,0.4]
[1717594581909,2.1334,173.43,173.41,0.4]
[1717594582222,0.34,173.44,173.4,2.95758913]
[1717594582614,0.34,173.44,173.41,2.1336]
[1717594582814,2.1332,173.45,173.4,2.95758913]
[1717594583010,2.1331,173.46,173.42,2.1335]
[1717594583217,2.1332,173.45,173.41,2.1336]
[1717594583406,2.1331,173.46,173.42,2.1334]
[1717594584031,2.1331,173.46,173.43,2.1334]
[1717594584250,2.1331,173.46,173.42,2.1334]
[1717594584528,10.6648,173.47,173.4,2.95758913]
[1717594584729,0.34,173.46,173.4,2.95758913]
[1717594584914,2.1333,173.44,173.4,5.09128913]
[1717594585121,2.1334,173.43,173.4,2.95758913]
[1717594585508,2.1335,173.42,173.4,2.95758913]
[1717594585924,2.3034,173.43,173.4,2.95758913]
[1717594586315,2.3033,173.44,173.4,5.09128913]
[1717594586530,2.1333,173.44,173.4,5.09128913]
[1717594586721,2.1334,173.43,173.4,2.95758913]
[1717594586919,2.1333,173.44,173.4,5.09128913]
[1717594587334,2.1334,173.43,173.4,2.95758913]
[1717594590217,2.1334,173.43,173.4,2.95758913]
[1717594591037,2.1331,173.46,173.4,10.12758913]
[1717594591237,13.12179298,173.5,173.43,7.17]
[1717594591422,2.1328,173.48,173.44,2.1332]
[1717594591939,2.1329,173.47,173.43,9.3033]
[1717594592238,2.1329,173.47,173.43,2.1333]
[1717594592442,6.3977,173.5,173.43,2.1333]
[1717594592634,2.133,173.46,173.42,9.3034]
[1717594592833,4.2654,173.49,173.4,11.49268913]
[1717594592834,2.1329,173.47,173.43,9.3033]
[1717594593035,2.1331,173.46,173.42,2.1335]
[1717594593238,2.1332,173.45,173.41,2.1336]
[1717594593739,2.1332,173.45,173.41,9.3036]
[1717594594229,2.1331,173.46,173.42,2.1335]
[1717594594428,2.1332,173.45,173.41,9.3036]
[1717594594929,2.1332,173.45,173.41,2.1336]
[1717594595227,2.1332,173.45,173.41,9.3036]
[1717594596833,2.133,173.46,173.42,2.1335]
[1717594597035,2.133,173.46,173.42,9.3035]
[1717594597839,2.1329,173.47,173.43,2.1334]
[1717594598024,2.1329,173.47,173.43,9.3034]
[1717594598340,2.133,173.46,173.43,7.17]
[1717594598837,2.133,173.46,173.43,9.3034]
[1717594599041,2.133,173.46,173.43,7.17]
[1717594599258,2.1332,173.45,173.41,2.1336]
[1717594600545,2.1332,173.45,173.41,9.3036]
[1717594600846,2.1331,173.46,173.42,2.1335]
[1717594601227,2.1331,173.45,173.41,9.3036]
[1717594602750,2.1331,173.45,173.41,2.1336]
[1717594602952,2.1331,173.45,173.41,9.3036]
[1717594603155,2.1333,173.44,173.41,2.1336]
[1717594603654,2.1332,173.45,173.41,2.1336]
[1717594604271,2.1333,173.44,173.4,5.09128913]
[1717594605353,2.1334,173.43,173.4,2.95758913]
[1717594605650,4.2661,173.46,173.4,2.95758913]
[1717594605651,2.1333,173.44,173.4,2.95758913]
[1717594606257,0.17,173.45,173.4,2.95758913]
[1717594606438,2.1335,173.42,173.4,2.95758913]
[1717594606838,2.1334,173.43,173.4,2.95758913]
[1717594607139,2.1334,173.43,173.4,10.12758913]
[1717594607448,2.1334,173.43,173.4,2.95758913]
[1717594608238,2.1335,173.42,173.4,2.95758913]
[1717594610251,2.1336,173.41,173.4,2.95758913]
[1717594612551,14.9332,173.44,173.4,12.26128913]
[1717594612552,2.1333,173.44,173.4,12.26128913]
[1717594612730,2.133,173.46,173.42,2.1335]
[1717594613259,2.1331,173.45,173.41,2.1336]
[1717594613434,4.2664,173.45,173.4,2.95758913]
[1717594613639,4.2664,173.45,173.4,10.12758913]
[1717594613640,2.1335,173.43,173.4,10.12758913]
[1717594613841,2.1335,173.42,173.4,2.95758913]
[1717594614040,2.1335,173.42,173.4,10.12758913]
[1717594614241,2.1335,173.42,173.4,2.95758913]
[1717594615157,2.3034,173.43,173.4,2.95758913]
[1717594615457,2.3034,173.43,173.4,10.12758913]
[1717594615655,2.1334,173.43,173.4,2.95758913]
[1717594615841,2.1335,173.42,173.4,2.95758913]
[1717594616039,2.134,173.38,173.37,5.91517826]
[1717594616243,2.1339,173.39,173.37,5.91517826]
[1717594616760,2.134,173.38,173.37,5.91517826]
[1717594616946,2.1339,173.39,173.37,5.91517826]
[1717594617257,2.134,173.39,173.37,5.91517826]
[1717594617462,0.34,173.4,173.37,5.91517826]
[1717594617665,2.1339,173.39,173.37,5.91517826]
[1717594617866,2.4738,173.4,173.37,5.91517826]
[1717594618043,0.34,173.4,173.37,5.91517826]
[1717594618251,72.00496337,173.45,173.37,5.91517826]
[1717594618456,2.1335,173.42,173.37,13.08517826]
[1717594618661,19.4335,173.42,173.37,5.91517826]
[1717594618962,2.1338,173.4,173.37,5.91517826]
[1717594619165,0.17,173.41,173.37,5.91517826]
[1717594619558,2.134,173.38,173.37,5.91517826]
[1717594619756,2.304,173.38,173.37,5.91517826]
[1717594619961,2.134,173.38,173.37,5.91517826]
[1717594620652,2.304,173.38,173.37,5.91517826]
[1717594621796,39.6865,173.33,173.26,17.74553479]
[1717594621951,39.6865,173.33,173.22,24.13932815]
[1717594621952,4.2701,173.3,173.22,24.13932815]
[1717594622156,0.34,173.29,173.24,7.17]
[1717594622362,0.34,173.29,173.23,7.17]
[1717594622552,2.1357,173.25,173.22,31.30932815]
[1717594622756,0.34,173.29,173.22,31.30932815]
[1717594622757,2.1353,173.28,173.23,7.17]
[1717594622956,0.34,173.29,173.23,7.17]
[1717594623263,2.3053,173.28,173.22,33.44532815]
[1717594623567,6.4883,173.33,173.26,7.17]
[1717594623770,0.34,173.32,173.25,7.17]
[1717594623969,2.1351,173.29,173.25,7.17]
[1717594624178,2.135,173.3,173.26,7.17]
[1717594624473,0.17,173.32,173.27,7.17]
[1717594624675,0.34,173.33,173.26,9.3055]
[1717594624969,2.135,173.3,173.26,7.17]
[1717594625156,2.1353,173.28,173.22,24.13932815]
[1717594625363,2.1353,173.28,173.22,26.27522815]
[1717594625569,4.2703,173.29,173.22,24.13932815]
[1717594625762,2.1356,173.25,173.22,24.13932815]
[1717594626254,0.17,173.31,173.22,24.13932815]
[1717594626451,0.34,173.31,173.22,24.13932815]
[1717594626663,0.34,173.31,173.23,2.1358]
[1717594627363,2.1352,173.28,173.23,8.6412]
[1717594627566,2.1352,173.28,173.24,45.0]
[1717594627870,61.13666337,173.32,173.24,45.0]
[1717594628070,5.91517826,173.34,173.23,51.5054]
[1717594628263,2.1347,173.32,173.27,2.1352]
[1717594629072,2.1349,173.31,173.25,2.1355]
[1717594629373,8.5395,173.32,173.23,6.6504]
[1717594629677,2.1358,173.23,173.22,24.13932815]
[1717594629857,4.2708,173.27,173.22,24.13932815]
[1717594630060,2.1358,173.23,173.22,24.13932815]
[1717594632471,2.1358,173.24,173.22,24.13932815]
[1717594632772,2.1358,173.23,173.22,24.13932815]
[1717594633356,6.4075,173.23,173.22,24.13932815]
[1717594633562,21.5286,173.23,173.22,24.13932815]
[1717594633766,21.6986,173.23,173.22,24.13932815]
[1717594634561,28.0488,173.23,173.22,24.13932815]
[1717594634962,45.3488,173.23,173.22,24.13932815]
[1717594635385,106.5357,173.23,173.22,19.53932815]
[1717594635696,43.8289,173.18,173.17,30.17416019]
[1717594635890,89.1689,173.18,173.17,15.43016019]
[1717594636383,123.7489,173.18,173.17,13.43016019]
[1717594636586,123.7489,173.18,173.17,12.43016019]
[1717594637474,20.4117,173.12,173.11,36.84876389]
[1717594637663,39.9867,173.12,173.11,36.84876389]
[1717594638264,21.7122,173.12,173.11,36.84876389]
[1717594638495,21.5422,173.12,173.11,36.84876389]
[1717594638982,21.7122,173.12,173.11,36.84876389]
[1717594639178,21.5422,173.12,173.11,36.84876389]
[1717594640274,6.4116,173.12,173.11,36.84876389]
[1717594640890,21.3722,173.12,173.11,36.84876389]
[1717594641771,21.5422,173.12,173.11,36.84876389]
[1717594642191,12.8233,173.12,173.11,36.84876389]
[1717594642392,2.1372,173.12,173.11,36.84876389]
[1717594642688,2.1372,173.12,173.11,36.82628139]
[1717594643482,6.4116,173.12,173.11,36.82628139]
[1717594643870,21.3722,173.12,173.11,36.82628139]
[1717594645394,2.1372,173.12,173.11,36.82628139]
[1717594645799,2.1371,173.13,173.11,43.32638139]
[1717594646092,2.1371,173.13,173.12,6.5001]
[1717594646394,2.1369,173.15,173.12,51.5001]
[1717594646578,73.95586337,173.18,173.12,45.0]
[1717594646895,2.1368,173.16,173.14,6.1331]
[1717594647075,2.1368,173.16,173.13,22.1765]
[1717594647275,2.1366,173.17,173.15,6.1331]
[1717594647475,2.1365,173.18,173.14,2.1369]
[1717594647702,2.1366,173.17,173.14,16.5234]
[1717594647879,2.1364,173.19,173.16,6.0241]
[1717594648087,2.1362,173.21,173.19,6.0241]
[1717594648297,4.2713,173.25,173.18,6.1839]
[1717594648495,2.136,173.22,173.19,60.4826]
[1717594648813,2.1359,173.23,173.21,6.1839]
[1717594648982,23.116917,173.26,173.16,6.3366]
[1717594649325,2.1364,173.19,173.17,45.0]
[1717594649500,2.1364,173.19,173.17,51.3366]
[1717594649680,2.1365,173.18,173.17,51.3366]
[1717594649886,2.1363,173.2,173.17,51.3366]
[1717594650087,2.1363,173.2,173.18,6.2525]
[1717594650295,2.136,173.22,173.19,45.0]
[1717594650490,2.1358,173.24,173.2,22.6052]
[1717594650706,2.1358,173.23,173.22,6.2525]
[1717594651086,2.1358,173.23,173.22,51.2525]
[1717594652019,2.1358,173.24,173.22,51.2525]
[1717594652309,25.252417,173.26,173.22,45.0]
[1717594652515,2.1356,173.25,173.24,6.6006]
[1717594652690,10.6752,173.3,173.2,16.1361]
[1717594652691,2.1358,173.24,173.2,16.1361]
[1717594652891,2.1358,173.24,173.22,6.5296]
[1717594653089,2.1358,173.23,173.22,6.5296]
[1717594653298,2.1357,173.25,173.22,51.5296]
[1717594653501,2.1358,173.23,173.22,6.5296]
[1717594653892,2.1358,173.23,173.22,51.5296]
[1717594655112,2.1358,173.24,173.22,51.5296]
[1717594655495,2.1356,173.25,173.22,51.5296]
[1717594655716,2.1354,173.27,173.24,6.1589]
[1717594656018,64.67752429,173.3,173.25,45.0]
[1717594656230,87.78813629,173.3,173.26,6.3052]
[1717594656416,2.1355,173.26,173.25,45.0]
[1717594656617,4.2703,173.29,173.23,6.0462]
[1717594656618,2.1356,173.25,173.23,6.0462]
[1717594656821,2.1357,173.24,173.23,6.0462]
[1717594657028,2.1357,173.24,173.23,45.0]
[1717594657336,2.1356,173.25,173.23,45.0]
[1717594657632,2.1354,173.27,173.24,51.3459]
[1717594657934,8.541,173.29,173.2,6.3459]
[1717594658234,8.541,173.29,173.18,15.415]
[1717594658235,2.1358,173.23,173.21,51.3459]
[1717594658616,4.2708,173.27,173.21,6.3459]
[1717594658808,2.1359,173.23,173.21,6.3459]
[1717594659007,2.1358,173.24,173.21,6.3459]
[1717594659436,4.2708,173.27,173.21,6.3459]
[1717594659610,2.1356,173.25,173.22,6.508]
[1717594659932,4.2706,173.28,173.23,6.508]
[1717594660129,4.2706,173.28,173.24,45.0]
[1717594660330,2.1357,173.24,173.23,6.508]
[1717594660533,2.1361,173.22,173.19,6.508]
[1717594660745,2.1361,173.22,173.2,51.508]
[1717594661742,2.1358,173.24,173.2,51.508]
[1717594661921,4.2712,173.26,173.2,51.508]
[1717594662241,2.136,173.22,173.2,51.508]
[1717594663039,2.1361,173.21,173.15,6.0215]
[1717594663203,2.1361,173.21,173.14,24.1036]
[1717594663204,2.136,173.22,173.18,6.0215]
[1717594663727,2.1359,173.23,173.18,8.1579]
[1717594663929,2.1359,173.23,173.19,2.1363]
[1717594664125,2.1359,173.23,173.19,6.5384]
[1717594664521,2.1359,173.23,173.19,2.1363]
[1717594665024,2.1359,173.23,173.18,2.1364]
[1717594665221,2.1359,173.23,173.19,2.1363]
[1717594665427,2.1358,173.24,173.19,8.1712]
[1717594665726,2.1358,173.24,173.2,45.0]
[1717594665929,2.1358,173.23,173.2,45.0]
[1717594666517,68.75038521,173.27,173.14,24.1036]
[1717594666725,10.6783,173.25,173.17,2.1365]
[1717594666926,2.136,173.22,173.17,8.5823]
[1717594667231,2.136,173.22,173.18,45.0]
[1717594667427,10.6783,173.25,173.18,45.0]
[1717594667730,2.136,173.22,173.18,45.0]
[1717594668134,2.1361,173.21,173.18,45.0]
[1717594668534,2.136,173.22,173.18,47.1365]
[1717594669136,2.136,173.22,173.18,45.0]
[1717594669326,2.136,173.22,173.18,47.1364]
[1717594669533,2.136,173.22,173.18,45.0]
[1717594669728,2.136,173.22,173.18,47.1364]
[1717594670740,2.1361,173.21,173.18,45.0]
[1717594671440,4.2721,173.22,173.15,2.1367]
[1717594671627,2.1363,173.19,173.15,2.1367]
[1717594672029,2.1363,173.2,173.15,2.1367]
[1717594672243,2.1363,173.2,173.16,2.1367]
[1717594672426,4.2721,173.22,173.13,4.2742]
[1717594672427,2.1363,173.19,173.13,4.2742]
[1717594672631,2.1363,173.19,173.15,2.1368]
[1717594672829,2.1363,173.19,173.15,8.7101]
[1717594673028,14.9515,173.23,173.15,6.5733]
[1717594673029,2.1362,173.21,173.15,6.5733]
[1717594673339,2.1362,173.2,173.15,6.5733]
[1717594673545,2.1362,173.2,173.16,2.1367]
[1717594674042,2.1362,173.2,173.16,47.1367]
[1717594674624,6.4081,173.22,173.16,45.0]
[1717594674823,2.1365,173.18,173.16,45.0]
[1717594675020,2.1366,173.17,173.16,45.0]
[1717594675440,2.1366,173.17,173.12,8.715]
[1717594675639,2.1367,173.16,173.12,8.715]
[1717594675836,2.1369,173.15,173.12,6.5779]
[1717594676248,2.1369,173.15,173.11,36.82628139]
[1717594676543,2.1368,173.16,173.12,2.1372]
[1717594677347,2.1366,173.17,173.13,2.1371]
[1717594677732,2.1367,173.16,173.12,47.1371]
[1717594678241,2.1366,173.17,173.13,2.1371]
[1717594678438,2.1367,173.16,173.13,2.1371]
[1717594678740,2.1367,173.16,173.12,47.1371]
[1717594679055,2.1366,173.17,173.13,2.1371]
[1717594679647,12.817,173.21,173.14,2.1369]
[1717594679849,12.817,173.21,173.12,45.0]
[1717594679850,2.1366,173.17,173.13,2.137]
[1717594680241,2.1366,173.17,173.12,45.0]
[1717594680432,2.1366,173.17,173.13,2.1371]
[1717594680628,2.1369,173.15,173.12,45.0]
[1717594680829,2.1369,173.14,173.12,45.0]
[1717594681030,2.1369,173.15,173.12,45.0]
[1717594681838,19.2291,173.17,173.12,45.0]
[1717594682144,2.137,173.14,173.12,45.0]
[1717594683842,14.9558,173.17,173.11,36.82628139]
[1717594684151,2.1371,173.13,173.11,36.82628139]
[1717594684347,2.1372,173.12,173.11,36.82628139]
[1717594685249,10.6844,173.15,173.11,36.82628139]
[1717594685555,2.1372,173.13,173.11,36.82628139]
[1717594685744,2.1371,173.13,173.11,36.82628139]
[1717594685947,19.2292,173.17,173.11,43.07748139]
[1717594686135,2.1368,173.15,173.12,45.0]
[1717594687138,2.1368,173.15,173.12,51.2445]
[1717594687334,8.5464,173.16,173.12,53.3817]
[1717594687536,2.1366,173.17,173.13,17.8444]
[1717594687853,2.1365,173.18,173.15,6.2115]
[1717594688049,2.1366,173.17,173.16,45.0]
[1717594688650,2.1371,173.13,173.11,36.82628139]
[1717594688851,2.1372,173.12,173.11,36.82628139]
[1717594689556,21.3722,173.12,173.11,34.7165609]
[1717594689751,12.8233,173.12,173.11,34.7165609]
[1717594690253,6.4116,173.12,173.11,34.7165609]
[1717594690453,2.1372,173.12,173.11,34.7165609]
[1717594691347,2.137,173.14,173.11,34.7165609]
[1717594691552,2.1369,173.15,173.11,36.8538609]
[1717594691955,2.137,173.14,173.11,41.3339609]
[1717594692138,2.137,173.14,173.12,45.0]
[1717594693335,2.1371,173.13,173.12,45.0]
[1717594695263,4.2738,173.15,173.11,34.7165609]
[1717594695463,2.1372,173.12,173.11,34.7165609]
[1717594695754,2.1372,173.12,173.11,79.7165609]
[1717594695974,2.1372,173.12,173.11,34.7165609]
[1717594699655,8.5475,173.15,173.11,34.7165609]
[1717594699835,2.1371,173.13,173.11,34.7165609]
[1717594700251,2.1372,173.12,173.11,34.7165609]
[1717594702565,2.1371,173.13,173.11,34.7165609]
[1717594702860,6.4101,173.17,173.11,34.7165609]
[1717594703043,2.1372,173.12,173.11,34.7165609]
[1717594705554,22.5167,173.12,173.11,30.2192626]
[1717594709966,45.62171275,173.12,173.11,15.2192626]
[1717594710164,53.58819962,173.12,173.11,13.48481174]
[1717594710467,53.58819962,173.12,173.11,10.01591002]
[1717594710770,53.58819962,173.12,173.11,8.28145916]
[1717594710965,53.58819962,173.12,173.11,6.5470083]
[1717594711269,53.58819962,173.12,173.11,4.81255744]
[1717594711450,8.46191275,173.11,173.04,42.52355787]
[1717594711771,6.4143,173.05,173.04,42.52355787]
[1717594713465,21.381,173.05,173.04,42.52355787]
[1717594714060,14.9667,173.05,173.04,42.52355787]
[1717594714272,6.4143,173.05,173.04,42.52355787]
[1717594715067,12.8286,173.05,173.04,42.52355787]
[1717594715259,21.381,173.05,173.04,42.52355787]
[1717594716671,2.1381,173.05,173.04,42.52355787]
[1717594717051,2.1381,173.05,173.04,87.52355787]
[1717594717246,2.1381,173.05,173.04,94.07335787]
[1717594718966,2.1381,173.05,173.04,49.07335787]
[1717594719171,2.1381,173.05,173.04,42.52355787]
[1717594720366,6.4143,173.05,173.04,42.52355787]
[1717594720686,2.1379,173.07,173.05,6.2068]
[1717594720852,2.1379,173.07,173.06,45.0]
[1717594721477,2.1379,173.07,173.05,6.2068]
[1717594721666,12.8269,173.09,173.05,6.2068]
[1717594721667,2.1379,173.06,173.05,6.2068]
[1717594721869,2.1379,173.06,173.05,51.2068]
[1717594722584,2.1379,173.06,173.05,6.2068]
[1717594722959,2.1381,173.05,173.04,42.52355787]
[1717594723186,2.1381,173.05,173.04,87.52355787]
[1717594723362,2.138,173.06,173.04,93.67005787]
[1717594724286,2.1379,173.07,173.04,93.67005787]
[1717594724583,2.1379,173.07,173.05,45.0]
[1717594724765,12.8269,173.09,173.05,45.0]
[1717594725466,2.1381,173.05,173.04,42.52355787]
[1717594725860,2.1381,173.05,173.04,87.52355787]
[1717594726055,2.1381,173.05,173.04,42.52355787]
[1717594726263,2.1381,173.05,173.04,49.08215787]
[1717594726496,8.5516,173.09,173.06,6.5586]
[1717594726672,8.5516,173.09,173.04,89.66175787]
[1717594726673,2.1377,173.09,173.08,6.5586]
[1717594727163,2.1377,173.09,173.08,51.5586]
[1717594727363,13.198422,173.12,173.08,51.5586]
[1717594727562,2.1375,173.1,173.08,51.5586]
[1717594728085,2.1376,173.09,173.08,51.5586]
[1717594728591,2.1376,173.09,173.08,45.0]
[1717594729882,2.1377,173.08,173.05,6.6532]
[1717594730184,6.4129,173.09,173.05,6.6532]
[1717594730377,2.1381,173.05,173.04,42.52355787]
[1717594730698,2.1381,173.05,173.04,87.52355787]
[1717594731488,2.1381,173.05,173.04,42.52355787]
[1717594732472,2.1381,173.05,173.04,87.52355787]
[1717594732783,14.9645,173.08,173.04,87.52355787]
[1717594732784,2.138,173.06,173.04,87.52355787]
[1717594732979,2.1379,173.07,173.04,87.52355787]
[1717594733182,2.1379,173.06,173.05,45.0]
[1717594736192,2.1381,173.05,173.04,42.52355787]
[1717594736371,2.1381,173.05,173.04,87.52355787]
[1717594736702,4.2752,173.09,173.04,87.52355787]
[1717594736999,2.1379,173.06,173.05,51.3129]
[1717594737174,2.1379,173.06,173.05,45.0]
[1717594742295,2.1378,173.07,173.06,6.2612]
[1717594742491,11.06152122,173.11,173.06,45.0]
[1717594742692,2.1377,173.08,173.07,51.2612]
[1717594743578,2.1376,173.09,173.07,51.2612]
[1717594744181,2.1376,173.09,173.08,6.2357]
[1717594744380,2.1376,173.09,173.08,51.2357]
[1717594745696,2.1375,173.1,173.08,51.2357]
[1717594745905,2.1375,173.1,173.09,45.0]
[1717594746293,8.5491,173.11,173.09,51.0561]
[1717594746497,6.4117,173.11,173.09,51.0561]
[1717594746684,8.549,173.11,173.09,51.0561]
[1717594746889,2.1373,173.11,173.09,51.0561]
[1717594747700,10.6851,173.13,173.09,51.0561]
[1717594747895,2.1372,173.12,173.09,51.0561]
[1717594748096,8.548,173.13,173.1,6.5848]
[1717594748305,6.4109,173.13,173.11,51.5848]
[1717594748504,2.137,173.14,173.11,6.5848]
[1717594748691,2.137,173.14,173.12,45.0]
[1717594749087,2.1371,173.13,173.12,51.5848]
[1717594749789,2.137,173.14,173.12,51.5848]
[1717594750307,2.1371,173.13,173.12,51.5848]
[1717594750689,2.137,173.14,173.12,51.5848]
[1717594751098,8.5471,173.15,173.12,45.0]
[1717594751300,2.1369,173.15,173.13,6.3891]
[1717594751598,2.1369,173.15,173.14,51.348]
[1717594751792,2.1367,173.17,173.14,51.348]
[1717594752093,2.1366,173.17,173.15,6.348]
[1717594752286,2.1366,173.17,173.16,45.0]
[1717594752488,2.1365,173.18,173.16,51.348]
[1717594752688,2.1366,173.17,173.16,51.348]
[1717594754415,2.1365,173.18,173.16,51.348]
[1717594755010,4.273,173.18,173.13,6.4291]
[1717594755211,4.273,173.18,173.14,45.0]
[1717594755212,6.4095,173.18,173.14,45.0]
[1717594755400,2.1368,173.15,173.14,45.0]
[1717594756313,2.1368,173.16,173.14,45.0]
[1717594756510,2.137,173.14,173.1,2.1374]
[1717594756810,4.2735,173.16,173.1,6.3138]
[1717594756987,2.1371,173.13,173.11,45.0]
[1717594757188,2.1373,173.11,173.1,6.3138]
[1717594758088,2.1373,173.11,173.06,8.4169]
[1717594758290,2.1373,173.11,173.07,6.1883]
[1717594758789,2.1374,173.11,173.07,8.3261]
[1717594760113,2.1374,173.11,173.08,45.0]
[1717594760605,2.1374,173.11,173.08,47.1377]
[1717594760814,2.1374,173.1,173.08,45.0]
[1717594761005,2.1374,173.11,173.08,45.0]
[1717594762622,2.1375,173.1,173.08,45.0]
[1717594762998,2.1376,173.09,173.08,45.0]
[1717594763923,2.1377,173.08,173.04,44.66175787]
[1717594764095,2.1378,173.07,173.04,48.79355787]
[1717594765016,2.1378,173.07,173.04,50.93175787]
[1717594765518,2.1378,173.07,173.05,45.0]
[1717594766222,2.1377,173.08,173.05,45.0]
[1717594767818,10.6856,173.12,173.05,51.5227]
[1717594768322,2.1375,173.1,173.06,2.1379]
[1717594768615,2.1376,173.09,173.05,45.0]
[1717594768793,2.1376,173.09,173.05,47.138]
[1717594769393,4.2747,173.11,173.05,47.138]
[1717594769627,2.1377,173.09,173.05,47.138]
[1717594770317,2.1379,173.06,173.05,45.0]
[1717594771326,2.1379,173.07,173.05,45.0]
[1717594772415,2.1381,173.05,173.04,42.52355787]
[1717594772609,2.1381,173.05,173.04,87.52355787]